bitfinex/quotes_ETHUSD_20250114
["timestamp","ask_amount","ask_price","bid_price","bid_amount"]
[1736865387139,0.0684057,3226.1,3224.8,0.815]
[1736865387490,0.55,3226.0,3224.8,0.815]
[1736865387686,0.55,3225.8,3224.8,0.815]
[1736865388118,0.06812763,3225.7,3224.8,0.815]
[1736865388620,0.279,3225.6,3224.8,0.815]
[1736865388991,0.0678273,3225.5,3224.8,0.815]
[1736865389914,3.09894,3227.0,3225.0,0.815]
[1736865390089,0.06740215,3225.4,3225.0,0.815]
[1736865390427,0.55,3226.6,3225.1,0.03100276]
[1736865390602,0.55,3226.6,3225.0,0.815]
[1736865390920,3.55,3226.4,3225.0,0.815]
[1736865391325,0.55,3226.2,3225.0,0.815]
[1736865391494,3.55,3226.2,3225.0,0.815]
[1736865391699,0.55,3226.0,3225.0,0.815]
[1736865392110,0.06808085,3225.9,3225.0,0.815]
[1736865392312,0.06808085,3225.9,3225.1,0.03100786]
[1736865392500,5.25811447,3227.6,3225.2,3.10053]
[1736865392704,0.06818333,3225.8,3225.4,0.815]
[1736865393020,3.0,3227.3,3225.4,0.815]
[1736865393223,0.55,3226.6,3225.4,0.815]
[1736865393426,3.55,3226.6,3225.4,0.815]
[1736865393604,0.55,3226.4,3225.4,0.815]
[1736865393990,0.06825168,3226.3,3225.4,0.815]
[1736865394324,0.55,3226.2,3225.4,0.815]
[1736865394541,0.61831685,3226.2,3225.4,0.815]
[1736865396101,0.61831685,3226.2,3224.1,0.63292671]
[1736865396102,3.55,3226.0,3224.2,0.815]
[1736865396258,5.05281447,3225.3,3224.2,0.815]
[1736865396462,3.0,3224.9,3224.2,0.815]
[1736865396607,0.278,3224.8,3224.2,0.815]
[1736865396964,0.55,3224.7,3224.2,0.815]
[1736865397111,0.61567178,3224.7,3223.0,0.815]
[1736865397454,0.06567178,3224.7,3223.0,0.815]
[1736865397668,0.06567178,3224.7,3223.2,0.815]
[1736865397848,0.61567178,3224.7,3223.2,0.815]
[1736865398453,0.06567178,3224.7,3223.2,0.815]
[1736865398965,0.06567178,3224.7,3223.3,0.815]
[1736865399514,0.06567178,3224.7,3222.9,3.0]
[1736865399515,0.06567178,3224.7,3223.4,0.55]
[1736865399756,0.278,3225.6,3223.5,0.815]
[1736865399932,0.06261724,3224.6,3223.5,0.815]
[1736865400121,0.55,3225.3,3223.6,0.03101655]
[1736865400324,0.06251562,3224.5,3223.7,0.815]
[1736865400525,0.55,3225.3,3223.7,0.815]
[1736865400881,0.278,3225.6,3223.7,0.815]
[1736865400882,0.7553,3226.3,3223.9,0.815]
[1736865401019,0.7553,3226.3,3223.8,0.03101828]
[1736865401020,0.06335087,3225.2,3224.4,0.815]
[1736865401213,4.13241,3226.8,3224.7,0.815]
[1736865401618,0.06282864,3226.7,3225.0,0.815]
[1736865401814,0.55,3226.6,3225.0,0.815]
[1736865402054,3.0,3226.0,3225.0,0.815]
[1736865402353,0.55,3225.8,3225.0,0.815]
[1736865402554,0.7553,3225.5,3223.3,0.815]
[1736865402858,0.55,3224.6,3223.3,0.815]
[1736865403019,0.55,3224.4,3223.3,0.815]
[1736865403611,0.06141373,3224.3,3223.3,0.815]
[1736865403755,0.278,3224.2,3223.3,0.815]
[1736865403953,0.55,3224.1,3223.3,0.815]
[1736865404264,3.0,3223.8,3222.3,0.815]
[1736865404474,3.0,3223.8,3222.4,0.815]
[1736865404769,0.06100633,3223.7,3222.4,0.815]
[1736865405347,0.278,3224.2,3222.4,0.815]
[1736865405544,0.06185479,3223.6,3222.4,0.815]
[1736865405744,0.278,3224.2,3222.4,0.815]
[1736865405944,0.05921808,3223.5,3222.4,0.815]
[1736865406144,0.278,3224.5,3222.5,0.55]
[1736865406464,0.278,3224.5,3223.0,3.0]
[1736865406632,0.05736845,3224.4,3223.2,0.8316]
[1736865406822,0.278,3224.5,3223.2,0.8316]
[1736865407022,0.278,3224.5,3223.3,0.55]
[1736865407229,0.7553,3225.4,3223.5,0.55]
[1736865407529,0.33674146,3225.3,3223.6,0.8316]
[1736865407868,0.05874146,3225.3,3224.0,3.10173]
[1736865408033,0.05874146,3225.3,3224.2,0.8316]
[1736865408237,0.278,3226.2,3224.2,0.8316]
[1736865408435,0.278,3226.3,3224.4,3.8316]
[1736865408622,0.05582986,3226.1,3224.5,0.8316]
[1736865408822,3.09878,3227.1,3224.9,3.55]
[1736865408823,0.05717751,3226.2,3224.9,3.55]
[1736865409026,3.91098,3227.1,3224.6,0.58100658]
[1736865409027,0.05780614,3226.0,3225.1,0.8316]
[1736865409329,0.8122,3227.1,3225.2,0.8316]
[1736865409529,0.05395657,3225.9,3225.2,0.8316]
[1736865409751,0.278,3227.0,3225.2,0.8316]
[1736865409929,0.0552256,3225.8,3225.2,0.8316]
[1736865410126,0.278,3227.0,3225.6,0.8316]
[1736865410328,0.278,3227.0,3225.8,0.8316]
[1736865410532,3.9099,3228.2,3226.0,0.8316]
[1736865410725,0.05613329,3226.9,3226.0,0.8316]
[1736865411036,0.278,3227.9,3226.0,0.8316]
[1736865411247,0.278,3227.9,3225.6,6.10013]
[1736865411248,0.278,3227.9,3226.2,0.55]
[1736865411461,0.33502441,3227.8,3226.3,0.03099107]
[1736865411662,0.33502441,3227.8,3226.5,0.55]
[1736865411663,0.05702441,3227.8,3226.5,0.55]
[1736865411865,0.278,3227.8,3226.6,0.8316]
[1736865412178,0.05725323,3227.7,3226.6,0.8316]
[1736865412377,0.278,3227.8,3226.6,0.8316]
[1736865412576,0.0584282,3227.6,3226.6,0.8316]
[1736865412782,0.05849591,3227.7,3226.6,0.8316]
[1736865412978,0.05836049,3227.5,3226.6,0.8316]
[1736865413179,0.278,3227.6,3226.6,0.8316]
[1736865413484,3.05832825,3227.4,3225.4,0.8316]
[1736865413655,3.0,3227.2,3225.4,0.8316]
[1736865414170,0.05812507,3227.1,3225.4,0.8316]
[1736865414351,0.05812507,3227.1,3225.5,0.55]
[1736865414552,0.05812507,3227.1,3225.4,0.8316]
[1736865414766,3.09904,3226.8,3225.4,0.8316]
[1736865414990,3.09895,3226.9,3225.4,0.8316]
[1736865415183,0.05745406,3226.7,3225.4,0.8316]
[1736865415388,3.0,3227.2,3225.5,0.55]
[1736865415573,0.05721951,3226.6,3225.9,0.55]
[1736865415900,0.278,3227.6,3225.5,4.50813565]
[1736865415901,0.278,3227.6,3226.1,0.55]
[1736865416092,0.278,3227.6,3226.3,0.55]
[1736865416461,0.05805074,3227.5,3226.3,0.55]
[1736865416702,0.05805074,3227.5,3226.6,0.55]
[1736865416858,0.0579786,3227.4,3226.6,0.55]
[1736865417059,0.278,3227.8,3226.6,0.55]
[1736865417498,0.05818171,3227.7,3226.6,0.55]
[1736865418313,0.05818171,3227.7,3226.8,0.8316]
[1736865418459,0.278,3228.2,3226.8,0.8316]
[1736865418659,0.278,3228.2,3227.1,0.55]
[1736865418883,0.05848032,3228.1,3227.0,0.8316]
[1736865419522,3.0,3227.7,3227.0,0.8316]
[1736865419805,0.05841263,3228.0,3227.0,0.8316]
[1736865420018,0.278,3228.8,3226.7,0.55]
[1736865420220,0.05842444,3227.9,3226.9,0.8291]
[1736865420363,3.09767,3228.3,3226.9,0.8291]
[1736865420567,0.05815401,3227.8,3226.9,0.8291]
[1736865420927,3.0,3228.4,3226.9,0.8291]
[1736865421222,0.05822996,3227.7,3226.8,4.3791]
[1736865421498,0.61199471,3228.6,3227.4,3.8291]
[1736865421805,0.278,3229.6,3227.6,1.3791]
[1736865421962,0.05921185,3228.5,3227.8,0.55]
[1736865422163,3.0965,3229.5,3227.8,0.55]
[1736865422381,0.05881771,3228.4,3227.8,0.55]
[1736865422569,0.278,3229.4,3227.8,0.55]
[1736865422765,0.05905079,3228.3,3227.8,0.55]
[1736865422992,0.278,3229.3,3227.8,0.55]
[1736865423164,0.05888177,3228.2,3227.8,0.55]
[1736865423366,0.278,3229.3,3228.0,0.8291]
[1736865424006,0.05955843,3229.2,3228.0,0.8291]
[1736865424806,0.05955843,3229.2,3227.6,4.3791]
[1736865425002,0.05955843,3229.2,3228.2,0.8291]
[1736865425216,0.8146,3230.2,3228.2,0.8291]
[1736865425420,0.278,3230.1,3228.4,0.8291]
[1736865425567,0.06061744,3230.1,3228.4,0.8291]
[1736865425771,0.06061744,3230.1,3228.5,0.55]
[1736865426006,0.06061744,3230.1,3228.6,0.8291]
[1736865426602,0.06061744,3230.1,3228.7,0.55]
[1736865426793,0.278,3230.4,3228.8,0.8291]
[1736865426994,0.06081163,3230.0,3228.8,0.8291]
[1736865427194,0.278,3230.4,3228.8,0.8291]
[1736865427406,0.06074402,3229.9,3228.8,0.8291]
[1736865427577,0.06074402,3229.9,3228.9,0.55]
[1736865427782,0.8146,3230.6,3229.0,0.86006603]
[1736865427978,0.06086631,3229.8,3229.1,0.58096177]
[1736865428217,0.63087764,3231.3,3229.7,3.8291]
[1736865428519,0.63087764,3231.3,3229.8,0.55]
[1736865428520,0.05994802,3231.2,3229.8,0.55]
[1736865428706,0.05994802,3231.2,3230.0,0.55]
[1736865428892,0.278,3232.0,3230.2,0.55]
[1736865429091,0.06001603,3231.9,3230.3,0.8291]
[1736865429305,0.06001603,3231.9,3230.6,0.55]
[1736865429684,0.06001603,3231.9,3230.7,1.3791]
[1736865429898,0.8146,3232.6,3230.7,1.3791]
[1736865430222,0.05857662,3232.5,3230.9,0.8291]
[1736865430425,0.05857662,3232.5,3231.0,0.58094626]
[1736865430627,0.05857662,3232.5,3231.1,0.8291]
[1736865431029,0.05857662,3232.5,3231.2,0.55]
[1736865431231,0.05857662,3232.5,3231.2,0.74291]
[1736865431930,0.05971701,3232.4,3231.5,0.8291]
[1736865432131,0.005,3233.2,3231.6,4.50813565]
[1736865432434,0.005,3233.2,3231.9,0.55]
[1736865432651,0.005,3233.2,3231.8,0.8291]
[1736865432836,0.0603265,3233.1,3231.8,0.8291]
[1736865433309,3.0,3232.9,3231.8,0.8291]
[1736865433493,0.06031901,3232.8,3231.8,0.8291]
[1736865433699,0.8146,3232.7,3231.8,0.8291]
[1736865433935,0.0592537,3232.6,3231.8,0.8291]
[1736865434131,0.0592537,3232.6,3231.3,0.8291]
[1736865434132,0.3372537,3232.6,3231.3,0.8291]
[1736865434435,3.0,3232.1,3231.3,0.8291]
[1736865434629,3.0,3232.1,3230.5,0.8291]
[1736865434831,0.05890163,3232.0,3230.5,0.8291]
[1736865435329,0.05857705,3231.9,3230.5,0.8291]
[1736865435535,3.0,3232.2,3230.5,0.8291]
[1736865435746,0.05902501,3231.8,3230.5,0.8291]
[1736865435954,0.84142501,3231.8,3230.5,0.8291]
[1736865436101,0.05902501,3231.8,3230.5,0.8291]
[1736865436302,0.7824,3232.2,3230.5,0.8291]
[1736865436303,0.7824,3232.2,3230.6,0.55]
[1736865436541,0.06133182,3232.1,3230.5,0.8291]
[1736865436739,3.09405,3232.0,3230.5,0.8291]
[1736865437069,0.06092803,3232.0,3230.5,0.8291]
[1736865437196,0.06092803,3232.0,3230.6,0.55]
[1736865437610,3.87632,3232.2,3230.5,0.8291]
[1736865437827,3.0,3231.8,3230.5,0.8291]
[1736865438021,0.7824,3231.3,3229.8,0.7613]
[1736865438224,0.7824,3231.3,3229.8,1.28824357]
[1736865438460,0.06017806,3231.2,3229.8,0.7613]
[1736865439023,0.06017806,3231.2,3230.1,0.55]
[1736865439261,0.06017806,3231.2,3230.2,0.03094809]
[1736865439443,0.7824,3232.3,3230.2,0.03094809]
[1736865439444,0.7824,3232.3,3230.8,0.7613]
[1736865439648,0.7824,3232.8,3231.1,0.55]
[1736865439965,0.7824,3232.8,3231.3,0.55]
[1736865440281,0.05985443,3232.7,3231.5,0.55]
[1736865440561,4.15326,3233.3,3231.5,0.55]
[1736865440761,0.05978694,3232.6,3231.5,0.55]
[1736865440975,3.87526,3233.3,3231.5,0.55]
[1736865441267,0.05971944,3232.5,3231.5,0.55]
[1736865441468,0.005,3233.2,3231.6,0.03093717]
[1736865441771,0.05984634,3232.4,3232.0,0.55]
[1736865441969,0.005,3233.2,3232.0,0.55]
[1736865443170,0.05867831,3233.1,3231.9,0.7613]
[1736865443721,0.05867831,3233.1,3232.0,0.55]
[1736865443959,0.005,3233.2,3232.0,0.55]
[1736865444338,0.0588242,3233.1,3232.0,0.55]
[1736865444514,0.005,3233.2,3231.7,0.58093122]
[1736865444717,0.005,3233.2,3232.6,4.50813565]
[1736865445039,0.005,3233.2,3232.2,0.7613]
[1736865445040,0.005,3233.2,3233.1,0.55]
[1736865445399,0.0008,3233.9,3233.5,4.50813565]
[1736865445601,0.0008,3233.9,3233.8,0.55]
[1736865445892,0.1659143,3234.4,3233.8,0.55]
[1736865446041,0.1659143,3234.4,3233.9,0.7613]
[1736865446247,0.1659143,3234.4,3234.1,0.55]
[1736865447057,0.1659143,3234.4,3233.9,0.7613]
[1736865447262,0.1659143,3234.4,3234.0,0.55]
[1736865448695,0.7824,3236.1,3234.9,3.0912]
[1736865448696,0.6334073,3236.1,3234.9,3.0912]
[1736865448930,0.7824,3237.1,3235.4,0.55]
[1736865449140,0.05246818,3236.0,3235.5,0.03090058]
[1736865449430,0.7824,3237.1,3235.2,0.58089769]
[1736865449737,3.0,3236.4,3235.2,0.55]
[1736865450025,3.0501655,3236.4,3235.1,0.7613]
[1736865450230,0.0501655,3236.4,3235.2,0.58090366]
[1736865450431,0.1659143,3237.6,3236.3,4.50813565]
[1736865450742,0.1659143,3237.6,3236.5,0.55]
[1736865450897,0.1659143,3237.6,3236.6,0.7745]
[1736865451076,0.1659143,3237.6,3236.9,0.55]
[1736865451379,0.1659143,3237.6,3237.3,5.05813565]
[1736865451579,0.1659143,3237.6,3237.4,0.03087582]
[1736865451810,0.1659143,3237.6,3237.3,4.53901451]
[1736865451991,0.1659143,3237.6,3237.3,4.50813565]
[1736865452220,0.1659143,3237.6,3237.2,0.7745]
[1736865453934,0.1659143,3237.6,3236.5,0.7745]
[1736865454141,0.1659143,3237.6,3236.6,0.55]
[1736865454430,0.1659143,3237.6,3236.6,0.72753136]
[1736865454733,0.1659143,3237.6,3236.6,0.17753136]
[1736865455086,0.1659143,3237.6,3236.5,0.7745]
[1736865455596,0.05019227,3237.5,3236.5,0.7745]
[1736865455800,0.05019227,3237.5,3235.8,0.7745]
[1736865455999,3.7553,3237.4,3235.8,0.7745]
[1736865456368,0.80504216,3237.4,3235.8,0.7745]
[1736865457000,3.0,3237.2,3235.8,0.7745]
[1736865457333,0.04992307,3237.1,3235.9,0.03090033]
[1736865457483,0.04992307,3237.1,3235.9,0.58090033]
[1736865457816,0.1659143,3237.6,3236.0,0.58089228]
[1736865458019,0.1659143,3237.6,3236.2,0.55]
[1736865458797,0.04959964,3237.5,3236.2,0.55]
[1736865458993,0.1659143,3237.6,3236.2,0.55]
[1736865459195,0.1659143,3237.6,3236.4,5.05813565]
[1736865459423,0.1659143,3237.6,3236.6,0.55]
[1736865460031,0.1659143,3237.6,3236.6,3.67048643]
[1736865460189,0.1659143,3237.6,3236.7,0.44449864]
[1736865460520,0.1659143,3237.6,3236.8,0.030888]
[1736865460721,0.1659143,3237.6,3236.6,0.55]
[1736865460944,0.1659143,3237.6,3236.5,0.7745]
[1736865461284,0.7553,3237.5,3236.1,0.50890279]
[1736865461488,0.7553,3237.5,3236.1,0.55]
[1736865461722,0.04757567,3237.4,3236.1,0.55]
[1736865462333,0.04757567,3237.4,3236.0,0.7745]
[1736865462334,0.7553,3237.3,3236.0,0.7745]
[1736865462619,0.04704884,3237.2,3236.0,0.7745]
[1736865462819,0.7553,3237.3,3236.0,0.7745]
[1736865463024,0.04709542,3237.2,3236.0,0.7745]
[1736865463219,0.7553,3237.3,3236.0,0.7745]
[1736865463426,0.7553,3237.3,3236.1,0.0308971]
[1736865463427,0.047398,3237.1,3236.1,0.0308971]
[1736865463609,0.1659143,3237.6,3236.5,0.55]
[1736865463986,0.1659143,3237.6,3236.7,0.7745]
[1736865464236,0.1659143,3237.6,3236.8,3.08947]
[1736865464399,0.1659143,3237.6,3236.7,0.7745]
[1736865466425,0.1659143,3237.6,3236.8,0.03088633]
[1736865466637,0.1659143,3237.6,3236.7,0.7745]
[1736865466794,0.1659143,3237.6,3236.7,1.16400644]
[1736865466991,0.1659143,3237.6,3236.7,0.7745]
[1736865467525,0.1659143,3237.6,3236.3,0.8259]
[1736865468021,0.8113,3237.5,3236.3,0.8259]
[1736865468227,0.85945427,3237.5,3235.9,4.50813565]
[1736865470291,0.8113,3237.4,3235.5,1.237933]
[1736865470597,0.1659143,3237.6,3235.5,0.2372821]
[1736865470598,3.85671902,3237.3,3235.5,0.2372821]
[1736865470799,0.85671902,3237.3,3235.5,0.2372821]
[1736865471131,0.85671902,3237.3,3235.5,0.2063833]
[1736865471626,0.85671902,3237.3,3235.8,4.50813565]
[1736865471811,0.85671902,3237.3,3235.5,0.2063833]
[1736865472147,3.0,3237.2,3235.5,0.2063833]
[1736865472289,0.8113,3236.7,3234.9,0.8259]
[1736865472489,0.8113,3236.4,3234.3,6.57240765]
[1736865472689,0.8113,3236.4,3234.3,5.33403565]
[1736865472927,0.8113,3236.4,3234.5,3.09166]
[1736865472928,0.04474856,3236.3,3234.5,3.09166]
[1736865473103,0.04474856,3236.3,3234.6,0.31225682]
[1736865473724,0.04474856,3236.3,3234.4,0.03090821]
[1736865473935,3.8113,3236.2,3234.3,6.14533565]
[1736865474100,3.8113,3236.2,3234.3,5.33403565]
[1736865474302,0.04430984,3236.1,3234.4,3.12266974]
[1736865474727,0.8113,3236.2,3234.5,3.55]
[1736865474929,0.8113,3236.2,3234.7,0.55]
[1736865475091,0.8113,3236.2,3235.1,0.55]
[1736865475298,0.8113,3236.4,3235.3,0.55]
[1736865475827,0.8113,3236.4,3235.2,0.58089811]
[1736865476017,0.8113,3236.4,3235.3,3.0909]
[1736865476211,0.8113,3236.4,3235.4,0.36717981]
[1736865476605,0.8113,3236.4,3235.1,0.55]
[1736865477818,0.8113,3236.4,3235.2,3.09099]
[1736865478018,0.4399143,3237.6,3235.4,3.0908]
[1736865478193,0.4399143,3237.6,3235.8,4.50813565]
[1736865478194,0.85669884,3237.5,3235.8,4.50813565]
[1736865479133,0.85669884,3237.5,3236.2,3.08997]
[1736865479290,0.85669884,3237.5,3236.3,0.308997]
[1736865479496,0.8113,3237.5,3235.9,3.64027]
[1736865479703,0.8113,3237.5,3235.9,3.09027]
[1736865480007,0.04403484,3237.4,3236.0,0.55]
[1736865480418,0.04403484,3237.4,3235.9,3.09027]
[1736865480419,0.04403484,3237.4,3235.9,0.55]
[1736865480618,0.04403484,3237.4,3235.8,4.50813565]
[1736865480889,0.8113,3237.5,3235.9,0.53340356]
[1736865481096,0.8113,3237.5,3235.9,1.08340356]
[1736865481297,0.04419002,3237.4,3236.0,0.55]
[1736865481498,0.04419002,3237.4,3235.9,0.53340356]
[1736865482012,0.8113,3237.5,3235.9,0.53340356]
[1736865482222,0.8634634,3237.4,3236.0,0.50415392]
[1736865482534,0.8634634,3237.4,3235.3,4.50813565]
[1736865482742,0.8634634,3237.4,3235.2,0.7552]
[1736865482743,0.8634634,3237.4,3235.8,4.5390329]
[1736865483038,0.8196,3237.4,3235.4,0.60778832]
[1736865483234,0.8196,3237.4,3235.5,0.5115924]
[1736865483434,0.04222612,3237.3,3235.9,0.55]
[1736865483736,0.8196,3237.4,3235.9,0.55]
[1736865483737,0.8196,3237.4,3236.3,4.50813565]
[1736865484036,0.8196,3237.4,3236.4,0.55]
[1736865484237,0.8196,3237.4,3236.6,3.08966]
[1736865484537,0.1659143,3237.6,3236.8,4.50813565]
[1736865484910,0.1659143,3237.6,3236.7,0.31205481]
[1736865485143,0.1659143,3237.6,3236.5,0.03088883]
[1736865485433,0.1659143,3237.6,3236.4,3.60747879]
[1736865485796,0.1659143,3237.6,3236.4,3.0]
[1736865486537,0.1659143,3237.6,3236.3,4.50813565]
[1736865486538,0.8196,3237.5,3236.0,5.04575338]
[1736865486709,0.8196,3237.5,3236.1,3.80802538]
[1736865486901,0.8196,3237.4,3236.1,3.80802538]
[1736865487129,0.85938076,3237.4,3235.7,3.80802538]
[1736865487330,3.08908,3237.2,3235.7,3.80802538]
[1736865487661,3.08937,3236.9,3235.5,0.5115924]
[1736865487949,0.8196,3236.7,3235.4,3.80802538]
[1736865488146,0.8196,3236.7,3235.5,0.38080254]
[1736865488308,0.85963587,3236.6,3235.4,3.80802538]
[1736865488815,3.0,3236.4,3234.8,9.12951415]
[1736865489007,3.0,3236.4,3234.8,5.32148877]
[1736865489008,0.85915552,3236.3,3234.8,5.32148877]
[1736865489227,0.85915552,3236.3,3234.7,3.80802538]
[1736865489549,0.85915552,3236.3,3234.8,4.53904383]
[1736865489550,0.8196,3236.3,3234.8,4.53904383]
[1736865489761,0.8196,3236.3,3234.9,4.45932638]
[1736865490085,0.8196,3236.3,3234.9,1.36804638]
[1736865490242,0.8196,3236.3,3235.0,3.80802538]
[1736865490557,0.1659143,3237.6,3235.3,5.05813565]
[1736865490558,0.8196,3237.5,3235.3,5.05813565]
[1736865490767,0.8196,3237.5,3236.3,4.50813565]
[1736865490921,0.03869774,3237.4,3236.4,1.00081356]
[1736865491128,0.8196,3237.5,3236.6,3.08966]
[1736865491336,0.8196,3237.5,3236.4,0.45081356]
[1736865491524,0.8196,3237.5,3236.8,3.80802538]
[1736865492333,0.8196,3237.5,3236.9,3.80802538]
[1736865493241,0.8196,3237.5,3236.7,3.80802538]
[1736865493402,0.03515547,3237.4,3236.6,3.80802538]
[1736865493605,0.8196,3237.5,3236.6,3.80802538]
[1736865493873,0.8196,3237.5,3236.5,3.80802538]
[1736865493874,0.03552171,3237.4,3236.5,3.80802538]
[1736865494021,0.03552171,3237.4,3236.3,3.80802538]
[1736865494220,0.8196,3237.5,3236.3,4.18882792]
[1736865494415,0.8196,3237.5,3236.3,3.80802538]
[1736865494642,0.03644572,3237.4,3236.3,3.80802538]
[1736865495243,0.7786,3237.3,3236.3,3.80802538]
[1736865495553,0.03628931,3237.2,3236.3,3.80802538]
[1736865495912,0.7786,3237.3,3236.3,3.80802538]
[1736865496318,0.03506842,3237.2,3236.2,3.80802538]
[1736865496637,0.7786,3237.1,3236.1,3.80802538]
[1736865496845,0.03598089,3237.0,3236.1,3.80802538]
[1736865497155,0.03598089,3237.0,3235.9,3.80802538]
[1736865497453,0.03598089,3237.0,3236.0,0.38080254]
[1736865498656,0.03598089,3237.0,3235.8,3.80802538]
[1736865498846,0.7786,3236.9,3235.6,3.80802538]
[1736865499050,0.0331788,3236.8,3235.7,0.0308998]
[1736865499368,0.7786,3236.9,3235.5,4.42855989]
[1736865499956,0.7786,3236.9,3235.5,0.62053451]
[1736865500144,0.7786,3236.9,3235.5,0.65143496]
[1736865500335,0.0331788,3236.8,3235.5,0.62053451]
[1736865500533,0.7786,3236.9,3235.5,0.62053451]
[1736865500734,0.03313268,3236.7,3235.5,0.62053451]
[1736865501057,0.7786,3236.9,3235.5,0.62053451]
[1736865501233,0.0331788,3236.8,3235.5,61.07183451]
[1736865501435,0.7786,3236.9,3235.6,3.12524416]
[1736865505269,0.7786,3236.9,3235.5,60.4513]
[1736865505467,0.78,3236.6,3235.5,60.4513]
[1736865505636,0.03278154,3236.5,3235.5,60.4513]
[1736865505825,1.40980281,3236.4,3235.5,60.4513]
[1736865506023,0.81264677,3236.3,3235.5,60.4513]
[1736865507260,0.78,3236.3,3235.5,60.4513]
[1736865508161,0.78,3236.1,3235.5,60.4513]
[1736865508682,0.78,3235.9,3235.5,60.4513]
[1736865509883,3.78,3235.7,3235.5,60.4513]
[1736865510181,0.81327277,3235.6,3235.5,60.4513]
[1736865510531,0.78,3235.6,3235.5,60.4513]
[1736865511635,6.12312012,3235.6,3235.5,58.38950772]
[1736865512235,3.03251012,3235.6,3235.5,58.38950772]
[1736865513680,3.03251012,3235.6,3235.5,56.68109844]
[1736865514275,3.83251012,3235.6,3235.5,51.86210888]
[1736865514579,3.83251012,3235.6,3235.5,23.87935822]
[1736865514790,3.83251012,3235.6,3235.5,18.16388647]
[1736865514942,3.83251012,3235.6,3235.5,18.03767147]
[1736865515142,3.83251012,3235.6,3235.5,3.96836155]
[1736865515367,4.12351012,3235.6,3235.5,3.39336655]
[1736865515983,4.28026755,3235.6,3235.5,0.47726655]
[1736865516183,0.25,3235.4,3232.6,0.5809178]
[1736865516442,3.0,3235.0,3232.8,0.55]
[1736865516547,3.0,3235.0,3232.7,0.58711534]
[1736865516883,0.02898542,3234.9,3232.7,0.58711534]
[1736865517547,0.02898542,3234.9,3232.8,0.30999283]
[1736865517883,0.02898542,3234.9,3233.4,4.50813565]
[1736865518185,0.291,3235.7,3233.9,4.50813565]
[1736865518542,0.32091909,3235.6,3233.9,4.50813565]
[1736865519342,3.0,3235.4,3233.5,0.45081356]
[1736865519541,3.09071,3235.5,3233.1,0.60520855]
[1736865519542,3.0,3235.0,3233.1,0.60520855]
[1736865519777,3.0,3235.0,3232.8,1.09209283]
[1736865519968,0.02777391,3234.9,3232.8,1.09209283]
[1736865520176,0.02777391,3234.9,3232.9,4.50813565]
[1736865520484,3.0,3235.4,3233.0,3.12402336]
[1736865520701,0.5,3236.1,3233.4,4.50813565]
[1736865520869,0.02959345,3235.3,3233.6,0.55]
[1736865521060,0.291,3235.9,3233.6,0.55]
[1736865521364,0.02959387,3235.8,3233.6,0.55]
[1736865521572,0.02959387,3235.8,3234.0,0.55]
[1736865521890,3.33961,3236.7,3234.0,0.55]
[1736865521891,0.90180478,3236.1,3234.1,0.50581356]
[1736865522064,3.99201478,3236.1,3234.1,0.50581356]
[1736865522252,0.02785664,3236.0,3234.1,0.50581356]
[1736865522583,0.291,3235.9,3234.1,0.50581356]
[1736865522787,0.291,3235.9,3233.5,0.7821]
[1736865522788,3.0,3235.7,3233.5,0.7821]
[1736865523083,3.0,3235.3,3233.1,2.18028275]
[1736865523286,0.02738297,3235.2,3233.1,2.18028275]
[1736865524000,0.02738297,3235.2,3233.5,0.55]
[1736865524203,0.63397558,3236.1,3234.4,4.50813565]
[1736865524502,3.09038,3235.9,3234.0,0.7821]
[1736865524796,3.291,3235.8,3233.5,0.7821]
[1736865525399,3.291,3235.8,3233.5,0.81301811]
[1736865525598,3.31811407,3235.8,3233.5,0.7821]
[1736865525900,0.31811407,3235.8,3234.0,0.55]
[1736865526101,3.38143,3235.8,3234.1,0.50581356]
[1736865526259,3.0,3235.7,3233.5,0.7821]
[1736865526475,3.0,3235.2,3233.1,2.22028275]
[1736865526683,3.0,3235.0,3233.1,1.5853159]
[1736865528294,3.0,3234.8,3232.9,0.30986747]
[1736865528615,3.0,3234.6,3232.9,0.30986747]
[1736865528794,0.291,3234.5,3233.0,0.03092853]
[1736865528988,0.291,3234.5,3232.9,0.30986747]
[1736865529320,0.291,3234.5,3233.0,0.03092622]
[1736865529491,0.291,3234.5,3233.1,0.45390619]
[1736865530002,0.291,3234.5,3233.4,4.50813565]
[1736865530198,0.291,3235.6,3234.0,5.33023565]
[1736865531220,0.291,3235.6,3234.1,0.03091575]
[1736865531379,0.62946614,3236.1,3234.1,0.58091575]
[1736865531593,0.291,3236.0,3234.2,0.90032814]
[1736865532597,3.0,3236.3,3234.2,0.90032814]
[1736865532796,0.25,3237.1,3234.2,0.90032814]
[1736865532797,4.75813565,3237.3,3234.6,0.8221]
[1736865533038,4.75813565,3237.3,3234.3,0.58091299]
[1736865533039,0.291,3237.2,3235.1,0.8221]
[1736865533239,0.291,3237.2,3235.5,4.50813565]
[1736865533397,0.291,3237.2,3235.5,4.95894921]
[1736865533797,0.291,3237.4,3235.5,4.95894921]
[1736865534135,3.08861,3237.8,3235.6,0.03090014]
[1736865534136,0.6084034,3237.8,3235.6,0.03090014]
[1736865534337,0.4569143,3237.6,3235.6,3.91271]
[1736865534538,0.4569143,3237.6,3235.6,0.8221]
[1736865534738,0.4569143,3237.6,3235.8,0.8221]
[1736865535229,0.4569143,3237.6,3235.8,0.85299545]
[1736865535411,0.4569143,3237.6,3236.0,4.50813565]
[1736865535903,0.1659143,3237.6,3236.1,3.09013]
[1736865536103,0.1659143,3237.6,3236.2,0.8221]
[1736865536310,0.1659143,3237.6,3236.5,4.50813565]
[1736865536634,0.1659143,3237.6,3236.6,0.8221]